[Event "*** Titled Tuesday Blitz"]
[Site "Chess.com"]
[Date "2021.04.06"]
[Round "2"]
[White "A-Fier"]
[Black "PotapovaM"]
[Result "1-0"]
[WhiteElo "2709"]
[BlackElo "2488"]
[TimeControl "180+1"]
[EndTime "10:18:05 PDT"]
[Termination "A-Fier won by resignation"]

1. d4 {[%clk 0:03:00.9]} 1... Nf6 {[%clk 0:02:59.8]} 2. c4 {[%clk 0:03:00.8]}
2... e6 {[%clk 0:03:00.5]} 3. Nf3 {[%clk 0:03:01]} 3... d5 {[%clk 0:03:00.3]} 4.
Nc3 {[%clk 0:03:00.9]} 4... a6 {[%clk 0:02:59.7]} 5. cxd5 {[%clk 0:02:59.1]}
5... exd5 {[%clk 0:03:00.6]} 6. Bg5 {[%clk 0:02:58.6]} 6... Be6 {[%clk
0:02:56.2]} 7. Bxf6 {[%clk 0:02:56.4]} 7... Qxf6 {[%clk 0:02:56.9]} 8. Qb3
{[%clk 0:02:57]} 8... Ra7 {[%clk 0:02:57.2]} 9. g3 {[%clk 0:02:55.9]} 9... c6
{[%clk 0:02:57.3]} 10. Bg2 {[%clk 0:02:56.3]} 10... Qd8 {[%clk 0:02:53.9]} 11.
O-O {[%clk 0:02:56.7]} 11... Bd6 {[%clk 0:02:53]} 12. a4 {[%clk 0:02:54.5]}
12... a5 {[%clk 0:02:48.7]} 13. Ne5 {[%clk 0:02:52.3]} 13... O-O {[%clk
0:02:43.2]} 14. Nd3 {[%clk 0:02:52.4]} 14... Na6 {[%clk 0:02:41.7]} 15. e3
{[%clk 0:02:52.6]} 15... Nb4 {[%clk 0:02:41.4]} 16. Rad1 {[%clk 0:02:49.4]}
16... Ra8 {[%clk 0:02:41.1]} 17. Ne5 {[%clk 0:02:44.6]} 17... f6 {[%clk
0:02:39.9]} 18. Nd3 {[%clk 0:02:43.9]} 18... Bf7 {[%clk 0:02:08.7]} 19. Nf4
{[%clk 0:02:40.6]} 19... Re8 {[%clk 0:01:48.9]} 20. Rd2 {[%clk 0:02:40.7]} 20...
Qe7 {[%clk 0:01:44.4]} 21. Qd1 {[%clk 0:02:40.2]} 21... Rad8 {[%clk 0:01:38]}
22. Re1 {[%clk 0:02:40.4]} 22... Qc7 {[%clk 0:01:37.8]} 23. b3 {[%clk
0:02:39.6]} 23... Re7 {[%clk 0:01:34.6]} 24. Bf3 {[%clk 0:02:36.1]} 24... Rde8
{[%clk 0:01:34.6]} 25. Bh5 {[%clk 0:02:36.3]} 25... g6 {[%clk 0:01:30.7]} 26.
Be2 {[%clk 0:02:34.2]} 26... Qd7 {[%clk 0:01:21]} 27. Bf3 {[%clk 0:02:31.6]}
27... Qf5 {[%clk 0:01:20.9]} 28. Bg4 {[%clk 0:02:30.2]} 28... Qg5 {[%clk
0:01:20.9]} 29. Ng2 {[%clk 0:02:21.5]} 29... f5 {[%clk 0:01:18.2]} 30. Be2
{[%clk 0:02:20.8]} 30... Qf6 {[%clk 0:01:09.5]} 31. h4 {[%clk 0:02:14.4]} 31...
h6 {[%clk 0:01:07.6]} 32. Bf1 {[%clk 0:02:05.9]} 32... g5 {[%clk 0:01:05.8]} 33.
hxg5 {[%clk 0:02:06.2]} 33... hxg5 {[%clk 0:01:06.7]} 34. f4 {[%clk 0:02:06.8]}
34... Qh6 {[%clk 0:00:55.5]} 35. Qf3 {[%clk 0:02:00.2]} 35... Bh5 {[%clk
0:00:53.7]} 36. Qf2 {[%clk 0:02:00.7]} 36... Bg4 {[%clk 0:00:49.3]} 37. fxg5
{[%clk 0:01:59.1]} 37... Qxg5 {[%clk 0:00:47.3]} 38. Nf4 {[%clk 0:01:59.6]}
38... Rh7 {[%clk 0:00:45.6]} 39. Bg2 {[%clk 0:01:50.2]} 39... Qh6 {[%clk
0:00:44.9]} 40. Qf1 {[%clk 0:01:48]} 40... Qh2+ {[%clk 0:00:41.1]} 41. Kf2
{[%clk 0:01:48.2]} 41... Bxf4 {[%clk 0:00:37.3]} 42. exf4 {[%clk 0:01:47.3]}
42... Rxe1 {[%clk 0:00:37.5]} 43. Qxe1 {[%clk 0:01:48.2]} 43... Rh3 {[%clk
0:00:32.8]} 44. Qe8+ {[%clk 0:01:38.7]} 44... Kg7 {[%clk 0:00:33.1]} 45. Qe7+
{[%clk 0:01:39.3]} 45... Kg6 {[%clk 0:00:29.3]} 46. Ne2 {[%clk 0:01:39.2]} 46...
Bxe2 {[%clk 0:00:23.6]} 47. Qg5+ {[%clk 0:01:39]} 47... Kf7 {[%clk 0:00:21.5]}
48. Qxf5+ {[%clk 0:01:38.6]} 48... Kg7 {[%clk 0:00:19.4]} 49. Qxh3 {[%clk
0:01:38.9]} 49... Qxh3 {[%clk 0:00:09.6]} 50. Bxh3 {[%clk 0:01:39.8]} 50... Bd3
{[%clk 0:00:10.5]} 51. g4 {[%clk 0:01:38.3]} 51... Bc2 {[%clk 0:00:10.2]} 52. g5
{[%clk 0:01:38.7]} 52... Bxb3 {[%clk 0:00:10.4]} 53. f5 {[%clk 0:01:38.6]} 53...
Bc4 {[%clk 0:00:10.2]} 54. Kg3 {[%clk 0:01:37.8]} 54... b5 {[%clk 0:00:09.4]}
55. f6+ {[%clk 0:01:38]} 55... Kg6 {[%clk 0:00:08.7]} 56. Rf2 {[%clk 0:01:34.6]}
56... Kf7 {[%clk 0:00:05.8]} 57. g6+ {[%clk 0:01:34.7]} 1-0

[Event "*** Titled Tuesday Blitz"]
[Site "Chess.com"]
[Date "2021.04.06"]
[Round "2"]
[White "esapunov"]
[Black "jonaszmb"]
[Result "1-0"]
[WhiteElo "2721"]
[BlackElo "2496"]
[TimeControl "180+1"]
[EndTime "10:18:06 PDT"]
[Termination "esapunov won by resignation"]

1. c4 {[%clk 0:03:00.9]} 1... Nf6 {[%clk 0:02:56.1]} 2. Nf3 {[%clk 0:03:01]}
2... g6 {[%clk 0:02:55.9]} 3. Nc3 {[%clk 0:03:00.7]} 3... Bg7 {[%clk 0:02:55.9]}
4. e4 {[%clk 0:03:01]} 4... d6 {[%clk 0:02:55.9]} 5. d4 {[%clk 0:03:01.3]} 5...
O-O {[%clk 0:02:55.9]} 6. Be2 {[%clk 0:03:02.1]} 6... Nc6 {[%clk 0:02:54.7]} 7.
d5 {[%clk 0:03:01.7]} 7... Nb4 {[%clk 0:02:32.2]} 8. O-O {[%clk 0:02:57.5]} 8...
a5 {[%clk 0:02:30.7]} 9. h3 {[%clk 0:02:53.9]} 9... Na6 {[%clk 0:02:19.7]} 10.
Re1 {[%clk 0:02:52.3]} 10... Nc5 {[%clk 0:02:11.9]} 11. Bf1 {[%clk 0:02:51.8]}
11... Nfd7 {[%clk 0:02:00.1]} 12. Bg5 {[%clk 0:02:44.9]} 12... h6 {[%clk
0:01:54.3]} 13. Bh4 {[%clk 0:02:44.2]} 13... a4 {[%clk 0:01:48.1]} 14. Qd2
{[%clk 0:02:42.7]} 14... g5 {[%clk 0:01:37.2]} 15. Bg3 {[%clk 0:02:41.8]} 15...
Bxc3 {[%clk 0:01:26.4]} 16. Qxc3 {[%clk 0:02:38.1]} 16... f6 {[%clk 0:01:26.8]}
17. Nd4 {[%clk 0:02:37.1]} 17... Ne5 {[%clk 0:01:24.2]} 18. f3 {[%clk
0:02:30.1]} 18... Ng6 {[%clk 0:01:22.4]} 19. b4 {[%clk 0:02:26.5]} 19... axb3
{[%clk 0:01:19]} 20. axb3 {[%clk 0:02:26.8]} 20... Bd7 {[%clk 0:01:19.5]} 21. b4
{[%clk 0:02:25.8]} 21... Na6 {[%clk 0:01:15.3]} 22. c5 {[%clk 0:02:24.1]} 22...
Qe8 {[%clk 0:00:49.7]} 23. c6 {[%clk 0:02:23.2]} 23... Bc8 {[%clk 0:00:43.6]}
24. b5 {[%clk 0:02:20.1]} 24... Nc5 {[%clk 0:00:42.1]} 25. Rxa8 {[%clk 0:02:19]}
25... b6 {[%clk 0:00:41.8]} 26. Ne6 {[%clk 0:02:12.9]} 26... Nxe6 {[%clk
0:00:36.7]} 27. dxe6 {[%clk 0:02:13]} 27... h5 {[%clk 0:00:36.2]} 28. Bd3 {[%clk
0:02:01.7]} 28... h4 {[%clk 0:00:36.3]} 29. Bh2 {[%clk 0:02:01.8]} 29... Ne5
{[%clk 0:00:34.9]} 30. Ra7 {[%clk 0:01:51.2]} 30... Qh5 {[%clk 0:00:25.7]} 31.
Bxe5 {[%clk 0:01:45.7]} 31... fxe5 {[%clk 0:00:26.6]} 32. Be2 {[%clk 0:01:44.4]}
32... Bxe6 {[%clk 0:00:25.1]} 33. Rxc7 {[%clk 0:01:43.3]} 33... Qf7 {[%clk
0:00:19.6]} 34. Qe3 {[%clk 0:01:36.5]} 34... Qf6 {[%clk 0:00:14.5]} 35. Rc1
{[%clk 0:01:33.8]} 35... Kg7 {[%clk 0:00:13.7]} 36. Kh2 {[%clk 0:01:27.6]} 36...
Kh6 {[%clk 0:00:13.8]} 37. Ra1 {[%clk 0:01:22.9]} 37... d5 {[%clk 0:00:09.1]}
38. exd5 {[%clk 0:01:18.9]} 38... e4 {[%clk 0:00:09.2]} 39. Qxe4 {[%clk
0:01:13.5]} 39... Qxa1 {[%clk 0:00:07.7]} 40. Qxe6+ {[%clk 0:01:13.2]} 40... Rf6
{[%clk 0:00:08]} 41. Qxe7 {[%clk 0:01:12.4]} 41... Rf7 {[%clk 0:00:06.4]} 42.
Qxf7 {[%clk 0:01:08.3]} 42... Qe5+ {[%clk 0:00:06.1]} 43. f4 {[%clk 0:01:08.6]}
43... gxf4 {[%clk 0:00:04.1]} 44. Qh7+ {[%clk 0:01:03.5]} 44... Kg5 {[%clk
0:00:04.4]} 45. Rg7+ {[%clk 0:01:03.9]} 45... Kf6 {[%clk 0:00:04.5]} 46. Qh6+
{[%clk 0:01:01.9]} 1-0

[Event "*** Titled Tuesday Blitz"]
[Site "Chess.com"]
[Date "2021.04.06"]
[Round "2"]
[White "KetiGrant"]
[Black "Zeeduin"]
[Result "0-1"]
[WhiteElo "2346"]
[BlackElo "2765"]
[TimeControl "180+1"]
[EndTime "10:18:06 PDT"]
[Termination "Zeeduin won on time"]

1. e4 {[%clk 0:03:00.9]} 1... e5 {[%clk 0:03:00.5]} 2. Nf3 {[%clk 0:03:00]} 2...
Nc6 {[%clk 0:03:01.4]} 3. d4 {[%clk 0:02:58.1]} 3... exd4 {[%clk 0:02:56.2]} 4.
Bc4 {[%clk 0:02:57.1]} 4... Nf6 {[%clk 0:02:56.4]} 5. O-O {[%clk 0:02:49.3]}
5... Nxe4 {[%clk 0:02:56.3]} 6. Re1 {[%clk 0:02:45.4]} 6... d5 {[%clk
0:02:56.6]} 7. Bxd5 {[%clk 0:02:45.1]} 7... Qxd5 {[%clk 0:02:57.5]} 8. Nc3
{[%clk 0:02:45.1]} 8... Qa5 {[%clk 0:02:55.6]} 9. Nxe4 {[%clk 0:02:44.7]} 9...
Be6 {[%clk 0:02:55.6]} 10. Neg5 {[%clk 0:02:41.5]} 10... O-O-O {[%clk
0:02:56.1]} 11. Nxe6 {[%clk 0:02:39.1]} 11... fxe6 {[%clk 0:02:57]} 12. Rxe6
{[%clk 0:02:38.8]} 12... Bd6 {[%clk 0:02:57.4]} 13. Bg5 {[%clk 0:02:30.7]} 13...
Rdf8 {[%clk 0:02:56.7]} 14. Bh4 {[%clk 0:02:29.8]} 14... Qb6 {[%clk 0:02:50.9]}
15. Bg3 {[%clk 0:02:17.5]} 15... Bxg3 {[%clk 0:02:47.8]} 16. hxg3 {[%clk
0:02:18.4]} 16... Qxb2 {[%clk 0:02:47.9]} 17. Rb1 {[%clk 0:02:16.2]} 17... Qxa2
{[%clk 0:02:48.2]} 18. Qe1 {[%clk 0:01:59.5]} 18... Qxc2 {[%clk 0:02:42]} 19.
Rc1 {[%clk 0:01:38.3]} 19... Qa4 {[%clk 0:02:36]} 20. Ne5 {[%clk 0:00:57.7]}
20... Qa5 {[%clk 0:02:00.1]} 21. Qe4 {[%clk 0:00:23.8]} 21... Nxe5 {[%clk
0:01:19.2]} 22. Rxe5 {[%clk 0:00:22.7]} 22... Qb6 {[%clk 0:01:14.4]} 23. Re7
{[%clk 0:00:19.5]} 23... Rd8 {[%clk 0:01:04.2]} 24. Qe5 {[%clk 0:00:07.8]} 24...
Rd6 {[%clk 0:00:39.4]} 25. Rexc7+ {[%clk 0:00:06.3]} 25... Qxc7 {[%clk
0:00:39.6]} 26. Rxc7+ {[%clk 0:00:06.3]} 26... Kxc7 {[%clk 0:00:40.5]} 27. Qxg7+
{[%clk 0:00:06.3]} 27... Kb6 {[%clk 0:00:34.8]} 28. Qxh8 {[%clk 0:00:07.2]}
28... d3 {[%clk 0:00:34.5]} 29. Qb2+ {[%clk 0:00:06.1]} 29... Kc7 {[%clk
0:00:34.9]} 30. Qc3+ {[%clk 0:00:05.7]} 30... Kd7 {[%clk 0:00:32.4]} 31. Qd2
{[%clk 0:00:05.3]} 31... a5 {[%clk 0:00:29.8]} 32. Kf1 {[%clk 0:00:04.2]} 32...
a4 {[%clk 0:00:30.4]} 33. Ke1 {[%clk 0:00:02.4]} 33... a3 {[%clk 0:00:30.9]} 0-1

[Event "*** Titled Tuesday Blitz"]
[Site "Chess.com"]
[Date "2021.04.06"]
[Round "2"]
[White "GM4life"]
[Black "UCantHandleDenker"]
[Result "0-1"]
[WhiteElo "2314"]
[BlackElo "2591"]
[TimeControl "180+1"]
[EndTime "10:18:06 PDT"]
[Termination "UCantHandleDenker won by resignation"]

1. e4 {[%clk 0:02:40.4]} 1... d6 {[%clk 0:03:00.9]} 2. d4 {[%clk 0:02:37.8]}
2... Nf6 {[%clk 0:03:01.3]} 3. Nc3 {[%clk 0:02:38.2]} 3... e5 {[%clk 0:03:01.2]}
4. Nf3 {[%clk 0:02:37]} 4... Nbd7 {[%clk 0:03:00.5]} 5. Bc4 {[%clk 0:02:36.9]}
5... Be7 {[%clk 0:03:00.8]} 6. O-O {[%clk 0:02:36.5]} 6... O-O {[%clk
0:03:01.3]} 7. Re1 {[%clk 0:02:36.2]} 7... c6 {[%clk 0:03:01.4]} 8. a4 {[%clk
0:02:35]} 8... b6 {[%clk 0:03:02]} 9. h3 {[%clk 0:02:33.1]} 9... a6 {[%clk
0:03:02.5]} 10. Be3 {[%clk 0:02:33.2]} 10... Rb8 {[%clk 0:03:02]} 11. Qd2 {[%clk
0:02:31.3]} 11... b5 {[%clk 0:03:01.1]} 12. axb5 {[%clk 0:02:28.6]} 12... axb5
{[%clk 0:03:02]} 13. Bb3 {[%clk 0:02:29.4]} 13... Qc7 {[%clk 0:03:01.6]} 14.
dxe5 {[%clk 0:02:27]} 14... dxe5 {[%clk 0:03:00.8]} 15. Ra7 {[%clk 0:02:24.8]}
15... Rb7 {[%clk 0:03:00]} 16. Rxb7 {[%clk 0:02:19.6]} 16... Bxb7 {[%clk
0:02:57.7]} 17. Bg5 {[%clk 0:02:13.3]} 17... Nc5 {[%clk 0:02:53]} 18. Qe3 {[%clk
0:02:04.8]} 18... Ne6 {[%clk 0:02:24.2]} 19. Bxe6 {[%clk 0:02:04.4]} 19... fxe6
{[%clk 0:02:23.7]} 20. Ra1 {[%clk 0:01:54.9]} 20... h6 {[%clk 0:02:15.3]} 21.
Bh4 {[%clk 0:01:54.2]} 21... Rd8 {[%clk 0:01:55.1]} 22. Bg3 {[%clk 0:01:52.6]}
22... Nd7 {[%clk 0:01:52.5]} 23. Ra7 {[%clk 0:01:43.1]} 23... Ra8 {[%clk
0:01:50.5]} 24. Rxa8+ {[%clk 0:01:40.2]} 24... Bxa8 {[%clk 0:01:50.4]} 25. Qd2
{[%clk 0:01:34.4]} 25... Bb7 {[%clk 0:01:47.6]} 26. Nd1 {[%clk 0:01:33.1]} 26...
Bd6 {[%clk 0:01:43.5]} 27. b3 {[%clk 0:01:30.2]} 27... Nc5 {[%clk 0:01:43.6]}
28. Qe3 {[%clk 0:01:28.4]} 28... Nd7 {[%clk 0:01:44]} 29. Nb2 {[%clk 0:01:27.8]}
29... c5 {[%clk 0:01:42.2]} 30. c4 {[%clk 0:01:24]} 30... Ba6 {[%clk 0:01:38.1]}
31. Qc3 {[%clk 0:01:21.5]} 31... bxc4 {[%clk 0:01:35.4]} 32. Nxc4 {[%clk
0:01:19.7]} 32... Bxc4 {[%clk 0:01:35]} 33. Qxc4 {[%clk 0:01:19.5]} 33... Kf7
{[%clk 0:01:33.7]} 34. h4 {[%clk 0:01:17.1]} 34... g6 {[%clk 0:01:20.3]} 35. Kh2
{[%clk 0:01:14.9]} 35... Ke7 {[%clk 0:01:18.9]} 36. h5 {[%clk 0:01:12.7]} 36...
g5 {[%clk 0:01:17.9]} 37. Qb5 {[%clk 0:01:10.8]} 37... Qa7 {[%clk 0:01:15.7]}
38. Nd2 {[%clk 0:01:04.8]} 38... Qa8 {[%clk 0:01:15.2]} 39. f3 {[%clk 0:01:00]}
39... Qe8 {[%clk 0:01:10.4]} 40. Nc4 {[%clk 0:00:55.2]} 40... Qxh5+ {[%clk
0:01:10.6]} 41. Kg1 {[%clk 0:00:55.6]} 41... g4 {[%clk 0:01:09.8]} 42. Qc6
{[%clk 0:00:54.3]} 42... Bb8 {[%clk 0:01:06.3]} 43. Nb6 {[%clk 0:00:46.2]} 43...
Nxb6 {[%clk 0:01:03.8]} 44. Qxb6 {[%clk 0:00:47.1]} 44... Bd6 {[%clk 0:01:02.9]}
45. Qa7+ {[%clk 0:00:34.1]} 45... Kf6 {[%clk 0:01:02.8]} 46. Qd7 {[%clk
0:00:34]} 46... Be7 {[%clk 0:01:01.8]} 47. Bxe5+ {[%clk 0:00:31.1]} 47... Qxe5
{[%clk 0:01:01.4]} 48. Qe8 {[%clk 0:00:27.5]} 48... Qd4+ {[%clk 0:01:00.7]} 49.
Kh2 {[%clk 0:00:27.1]} 49... gxf3 {[%clk 0:00:59.7]} 50. Qh8+ {[%clk 0:00:25.8]}
50... Kf7 {[%clk 0:00:59]} 51. Qh7+ {[%clk 0:00:25.9]} 51... Ke8 {[%clk
0:00:58.7]} 52. Qg8+ {[%clk 0:00:25.7]} 52... Kd7 {[%clk 0:00:58.6]} 53. gxf3
{[%clk 0:00:26.1]} 53... Qf2+ {[%clk 0:00:57.3]} 0-1

[Event "*** Titled Tuesday Blitz"]
[Site "Chess.com"]
[Date "2021.04.06"]
[Round "2"]
[White "kidagent"]
[Black "kingofthenil"]
[Result "0-1"]
[WhiteElo "2327"]
[BlackElo "2635"]
[TimeControl "180+1"]
[EndTime "10:18:07 PDT"]
[Termination "kingofthenil won by checkmate"]

1. e4 {[%clk 0:03:00.9]} 1... c6 {[%clk 0:02:58.6]} 2. d4 {[%clk 0:03:00.4]}
2... d5 {[%clk 0:02:57.7]} 3. Nc3 {[%clk 0:03:00.9]} 3... dxe4 {[%clk
0:02:56.5]} 4. Nxe4 {[%clk 0:03:00.7]} 4... Nd7 {[%clk 0:02:55.9]} 5. Bd3 {[%clk
0:02:57.1]} 5... Ndf6 {[%clk 0:02:54.8]} 6. Nxf6+ {[%clk 0:02:53.5]} 6... Nxf6
{[%clk 0:02:54.4]} 7. c3 {[%clk 0:02:53.5]} 7... Qc7 {[%clk 0:02:53.7]} 8. Ne2
{[%clk 0:02:52.4]} 8... e5 {[%clk 0:02:50.4]} 9. dxe5 {[%clk 0:02:51]} 9... Qxe5
{[%clk 0:02:51]} 10. Bf4 {[%clk 0:02:50.7]} 10... Qe7 {[%clk 0:02:41.7]} 11. O-O
{[%clk 0:02:49]} 11... Be6 {[%clk 0:02:40.3]} 12. Re1 {[%clk 0:02:47.5]} 12...
Nd5 {[%clk 0:02:13.8]} 13. Bg3 {[%clk 0:02:44.1]} 13... O-O-O {[%clk 0:02:04]}
14. Nd4 {[%clk 0:02:41.3]} 14... Qf6 {[%clk 0:01:33.3]} 15. Qa4 {[%clk
0:02:18.2]} 15... Bd6 {[%clk 0:01:06.5]} 16. Nxc6 {[%clk 0:02:04.2]} 16... Bxg3
{[%clk 0:00:39.6]} 17. Nxa7+ {[%clk 0:01:57.4]} 17... Kb8 {[%clk 0:00:35.9]} 18.
hxg3 {[%clk 0:01:58.1]} 18... Bd7 {[%clk 0:00:34.2]} 19. Nb5 {[%clk 0:01:53.2]}
19... Bxb5 {[%clk 0:00:32.9]} 20. Bxb5 {[%clk 0:01:52.4]} 20... h5 {[%clk
0:00:32.6]} 21. Rad1 {[%clk 0:01:46.5]} 21... h4 {[%clk 0:00:30.1]} 22. gxh4
{[%clk 0:01:29.4]} 22... Rxh4 {[%clk 0:00:21.2]} 23. Re4 {[%clk 0:01:28.8]}
23... Rh6 {[%clk 0:00:12.8]} 24. Rxd5 {[%clk 0:01:06.8]} 24... Rxd5 {[%clk
0:00:05.2]} 25. Re8+ {[%clk 0:01:04.1]} 25... Kc7 {[%clk 0:00:05.6]} 26. Qc4+
{[%clk 0:01:02.7]} 26... Kd6 {[%clk 0:00:05.8]} 27. Qc8 {[%clk 0:00:50]} 27...
Rd1+ {[%clk 0:00:04.6]} 28. Bf1 {[%clk 0:00:49.2]} 28... Rh1+ {[%clk 0:00:03.6]}
29. Kxh1 {[%clk 0:00:48.9]} 29... Rxf1+ {[%clk 0:00:04.5]} 30. Kh2 {[%clk
0:00:49.1]} 30... Qf4+ {[%clk 0:00:02.9]} 31. g3 {[%clk 0:00:41.7]} 31... Qxf2+
{[%clk 0:00:03.3]} 32. Kh3 {[%clk 0:00:41.3]} 32... Rh1+ {[%clk 0:00:03.1]} 33.
Kg4 {[%clk 0:00:41.4]} 33... f5+ {[%clk 0:00:03.7]} 34. Kg5 {[%clk 0:00:41.3]}
34... Qxg3+ {[%clk 0:00:03.7]} 35. Kxf5 {[%clk 0:00:41]} 35... Rh5+ {[%clk
0:00:03.8]} 36. Ke4 {[%clk 0:00:40.4]} 36... Rh4+ {[%clk 0:00:03.4]} 37. Kf5
{[%clk 0:00:39.6]} 37... Qf4+ {[%clk 0:00:03]} 38. Kg6 {[%clk 0:00:39.5]} 38...
Qf6# {[%clk 0:00:03.9]} 0-1

[Event "*** Titled Tuesday Blitz"]
[Site "Chess.com"]
[Date "2021.04.06"]
[Round "2"]
[White "Mikhail_Golubev"]
[Black "BrandonJacobson"]
[Result "0-1"]
[WhiteElo "2558"]
[BlackElo "2884"]
[TimeControl "180+1"]
[EndTime "10:18:08 PDT"]
[Termination "BrandonJacobson won on time"]

1. e4 {[%clk 0:03:00.9]} 1... c5 {[%clk 0:02:59.7]} 2. Nf3 {[%clk 0:03:00.4]}
2... Nc6 {[%clk 0:02:59.8]} 3. Nc3 {[%clk 0:02:59.7]} 3... g6 {[%clk 0:02:58.4]}
4. d4 {[%clk 0:02:59.1]} 4... cxd4 {[%clk 0:02:58.5]} 5. Nxd4 {[%clk 0:02:59.1]}
5... Bg7 {[%clk 0:02:59.1]} 6. Be3 {[%clk 0:02:59]} 6... Nf6 {[%clk 0:02:59.3]}
7. Nxc6 {[%clk 0:02:58.9]} 7... bxc6 {[%clk 0:02:58.4]} 8. e5 {[%clk 0:02:58.9]}
8... Ng8 {[%clk 0:02:58.8]} 9. Bd4 {[%clk 0:02:57.3]} 9... f6 {[%clk 0:02:44.3]}
10. f4 {[%clk 0:02:41.1]} 10... Nh6 {[%clk 0:02:42.7]} 11. exf6 {[%clk
0:02:36.3]} 11... exf6 {[%clk 0:02:43.6]} 12. Bc5 {[%clk 0:02:18.5]} 12... Nf5
{[%clk 0:02:15.3]} 13. Qe2+ {[%clk 0:02:04.2]} 13... Kf7 {[%clk 0:02:13.3]} 14.
O-O-O {[%clk 0:02:02.7]} 14... d5 {[%clk 0:01:42.3]} 15. g4 {[%clk 0:01:42.9]}
15... Nd6 {[%clk 0:01:22.8]} 16. Bg2 {[%clk 0:01:29.2]} 16... Re8 {[%clk
0:01:20.2]} 17. Qd3 {[%clk 0:01:22.4]} 17... Be6 {[%clk 0:01:04.2]} 18. f5
{[%clk 0:00:49.3]} 18... gxf5 {[%clk 0:01:00.4]} 19. Rhf1 {[%clk 0:00:48.4]}
19... fxg4 {[%clk 0:00:33]} 20. Nxd5 {[%clk 0:00:21.7]} 20... cxd5 {[%clk
0:00:20.3]} 21. Bxd5 {[%clk 0:00:21.1]} 21... Rc8 {[%clk 0:00:21]} 22. Bxe6+
{[%clk 0:00:15]} 22... Rxe6 {[%clk 0:00:21.9]} 23. Bxd6 {[%clk 0:00:15.1]} 23...
Rc6 {[%clk 0:00:22.2]} 24. Bf4 {[%clk 0:00:08.6]} 24... Qxd3 {[%clk 0:00:22.4]}
25. Rxd3 {[%clk 0:00:08.1]} 25... Re2 {[%clk 0:00:22.9]} 26. c3 {[%clk
0:00:07.6]} 26... Kg6 {[%clk 0:00:17.1]} 27. Rd6 {[%clk 0:00:03.5]} 27... Rxd6
{[%clk 0:00:16.5]} 28. Bxd6 {[%clk 0:00:03.3]} 28... f5 {[%clk 0:00:17.4]} 0-1

[Event "*** Titled Tuesday Blitz"]
[Site "Chess.com"]
[Date "2021.04.06"]
[Round "2"]
[White "Jumbo"]
[Black "davidkalashian"]
[Result "1-0"]
[WhiteElo "2837"]
[BlackElo "2540"]
[TimeControl "180+1"]
[EndTime "10:18:11 PDT"]
[Termination "Jumbo won on time"]

1. d4 {[%clk 0:03:00.9]} 1... Nf6 {[%clk 0:02:59.3]} 2. Bf4 {[%clk 0:03:01.3]}
2... e6 {[%clk 0:02:58.9]} 3. Nf3 {[%clk 0:03:01.1]} 3... b6 {[%clk 0:02:58.3]}
4. e3 {[%clk 0:03:00.4]} 4... Bb7 {[%clk 0:02:58.1]} 5. Bd3 {[%clk 0:02:57.5]}
5... Be7 {[%clk 0:02:55.7]} 6. h3 {[%clk 0:02:56.6]} 6... O-O {[%clk 0:02:55.3]}
7. O-O {[%clk 0:02:56.1]} 7... c5 {[%clk 0:02:55.1]} 8. c3 {[%clk 0:02:55.2]}
8... cxd4 {[%clk 0:02:54.9]} 9. exd4 {[%clk 0:02:55.3]} 9... d6 {[%clk
0:02:54.7]} 10. Re1 {[%clk 0:02:52.7]} 10... Nbd7 {[%clk 0:02:53.8]} 11. Nbd2
{[%clk 0:02:52.7]} 11... Re8 {[%clk 0:02:53.3]} 12. a4 {[%clk 0:02:53]} 12... a6
{[%clk 0:02:52.7]} 13. Qe2 {[%clk 0:02:51.1]} 13... Nf8 {[%clk 0:02:50.7]} 14.
Bh2 {[%clk 0:02:50.5]} 14... Ng6 {[%clk 0:02:48.7]} 15. Nc4 {[%clk 0:02:35.4]}
15... Bf8 {[%clk 0:02:42.5]} 16. a5 {[%clk 0:02:27.2]} 16... b5 {[%clk
0:02:36.9]} 17. Nb6 {[%clk 0:02:27.1]} 17... Ra7 {[%clk 0:02:27.7]} 18. Ng5
{[%clk 0:02:03.3]} 18... Nd5 {[%clk 0:02:07.7]} 19. Qh5 {[%clk 0:01:49]} 19...
Nf6 {[%clk 0:01:58.2]} 20. Qd1 {[%clk 0:01:20.1]} 20... Nd5 {[%clk 0:01:53.8]}
21. Bxg6 {[%clk 0:00:31.2]} 21... Qxg5 {[%clk 0:01:38.8]} 22. Be4 {[%clk
0:00:30.4]} 22... Nf4 {[%clk 0:00:20.3]} 23. Bxb7 {[%clk 0:00:16.7]} 23... Rxb7
{[%clk 0:00:18.6]} 24. Qf3 {[%clk 0:00:16.4]} 24... Rxb6 {[%clk 0:00:05.5]} 25.
Bxf4 {[%clk 0:00:15]} 1-0

[Event "*** Titled Tuesday Blitz"]
[Site "Chess.com"]
[Date "2021.04.06"]
[Round "2"]
[White "SF-96"]
[Black "PSvidler"]
[Result "0-1"]
[WhiteElo "2571"]
[BlackElo "2963"]
[TimeControl "180+1"]
[EndTime "10:18:13 PDT"]
[Termination "PSvidler won by resignation"]

1. Nf3 {[%clk 0:03:00.9]} 1... g6 {[%clk 0:02:59.5]} 2. g3 {[%clk 0:02:59.7]}
2... Bg7 {[%clk 0:02:56.9]} 3. d4 {[%clk 0:03:00.2]} 3... c5 {[%clk 0:02:55.7]}
4. Bg2 {[%clk 0:02:52.4]} 4... cxd4 {[%clk 0:02:55]} 5. Nxd4 {[%clk 0:02:53.3]}
5... Nc6 {[%clk 0:02:55.4]} 6. Nb3 {[%clk 0:02:47.8]} 6... a5 {[%clk 0:02:46.9]}
7. a4 {[%clk 0:02:40.8]} 7... Nf6 {[%clk 0:02:46.5]} 8. O-O {[%clk 0:02:40.6]}
8... O-O {[%clk 0:02:46.1]} 9. Nc3 {[%clk 0:02:39]} 9... d6 {[%clk 0:02:46]} 10.
h3 {[%clk 0:02:31.6]} 10... Be6 {[%clk 0:02:41.3]} 11. e4 {[%clk 0:02:04]} 11...
Rc8 {[%clk 0:02:40.1]} 12. Be3 {[%clk 0:02:00.5]} 12... Nd7 {[%clk 0:02:35.2]}
13. Rb1 {[%clk 0:01:49.3]} 13... Nde5 {[%clk 0:02:19.2]} 14. Nd5 {[%clk
0:01:31]} 14... Nc4 {[%clk 0:02:17.2]} 15. Bc1 {[%clk 0:01:24.1]} 15... Nb4
{[%clk 0:02:14]} 16. Nd4 {[%clk 0:01:07.9]} 16... Bxd5 {[%clk 0:02:03.9]} 17.
exd5 {[%clk 0:01:07.7]} 17... Nb6 {[%clk 0:02:04.5]} 18. c3 {[%clk 0:00:40.5]}
18... N4xd5 {[%clk 0:01:57.7]} 19. Qb3 {[%clk 0:00:40]} 19... e6 {[%clk
0:01:38.2]} 20. Rd1 {[%clk 0:00:33.4]} 20... Qd7 {[%clk 0:01:26.8]} 21. Nb5
{[%clk 0:00:24.6]} 21... Nc4 {[%clk 0:01:26.5]} 22. Bxd5 {[%clk 0:00:19]} 22...
exd5 {[%clk 0:01:24.8]} 23. Kg2 {[%clk 0:00:19.6]} 23... Rfe8 {[%clk 0:01:17.8]}
24. Qc2 {[%clk 0:00:19.2]} 24... Qe6 {[%clk 0:00:53.7]} 25. Bf4 {[%clk
0:00:17.1]} 25... h6 {[%clk 0:00:45.7]} 26. h4 {[%clk 0:00:11.9]} 26... Qg4
{[%clk 0:00:39.1]} 27. Qd3 {[%clk 0:00:10.5]} 27... Re2 {[%clk 0:00:35.1]} 28.
Qf3 {[%clk 0:00:07.3]} 28... Qxf3+ {[%clk 0:00:33.2]} 29. Kxf3 {[%clk
0:00:08.2]} 29... Rxb2 {[%clk 0:00:33.7]} 30. Rxb2 {[%clk 0:00:06.2]} 30... Nxb2
{[%clk 0:00:34.6]} 31. Rxd5 {[%clk 0:00:07.1]} 31... Nxa4 {[%clk 0:00:33.6]} 32.
Bxd6 {[%clk 0:00:04.4]} 32... Nxc3 {[%clk 0:00:32.9]} 33. Nxc3 {[%clk
0:00:02.6]} 33... Rxc3+ {[%clk 0:00:33.8]} 34. Ke4 {[%clk 0:00:02.7]} 34... a4
{[%clk 0:00:33]} 35. Bb4 {[%clk 0:00:02.2]} 35... Rc4+ {[%clk 0:00:32.7]} 0-1